[Event "*** Titled Tuesday Blitz"]
[Site "Chess.com"]
[Date "2018.10.02"]
[Round "5"]
[White "Sanan_Sjugirov"]
[Black "RitvarsReimanis"]
[Result "1-0"]
[WhiteElo "2811"]
[BlackElo "2606"]
[TimeControl "180+2"]
[EndTime "14:04:18 PDT"]
[Termination "Sanan_Sjugirov won by resignation"]

1. d4 {[%clk 0:03:01.9]} 1... Nf6 {[%clk 0:03:00.8]} 2. c4 {[%clk 0:03:02.8]}
2... e6 {[%clk 0:03:02.7]} 3. Nf3 {[%clk 0:03:00.1]} 3... d5 {[%clk 0:03:02.6]}
4. Nc3 {[%clk 0:03:00]} 4... Be7 {[%clk 0:03:03.5]} 5. Bg5 {[%clk 0:02:57.3]}
5... O-O {[%clk 0:03:04.5]} 6. Qc2 {[%clk 0:02:54.8]} 6... c6 {[%clk 0:03:04]}
7. e3 {[%clk 0:02:49.2]} 7... b6 {[%clk 0:03:04.3]} 8. Bd3 {[%clk 0:02:48.6]}
8... Bb7 {[%clk 0:03:05.8]} 9. Bxf6 {[%clk 0:02:48.9]} 9... gxf6 {[%clk
0:03:03.4]} 10. Bxh7+ {[%clk 0:02:49.3]} 10... Kg7 {[%clk 0:03:05.2]} 11. Bd3
{[%clk 0:02:50.2]} 11... Nd7 {[%clk 0:03:03.7]} 12. cxd5 {[%clk 0:02:45]} 12...
cxd5 {[%clk 0:03:04.1]} 13. h4 {[%clk 0:02:43.6]} 13... Rc8 {[%clk 0:03:03.8]}
14. Qe2 {[%clk 0:02:39.6]} 14... Rh8 {[%clk 0:03:03]} 15. h5 {[%clk 0:02:36.2]}
15... f5 {[%clk 0:03:01.4]} 16. a3 {[%clk 0:02:24.6]} 16... Nf6 {[%clk
0:03:01.5]} 17. Ne5 {[%clk 0:02:23.7]} 17... Bd6 {[%clk 0:03:02.7]} 18. h6+
{[%clk 0:02:15.8]} 18... Kf8 {[%clk 0:03:00.4]} 19. Qf3 {[%clk 0:01:56.7]} 19...
Bxe5 {[%clk 0:02:26.8]} 20. dxe5 {[%clk 0:01:58.6]} 20... Ng4 {[%clk 0:02:28.2]}
21. Qf4 {[%clk 0:01:56.6]} 21... Qc7 {[%clk 0:02:15.4]} 22. Be2 {[%clk
0:01:36.4]} 22... Qxe5 {[%clk 0:01:58.2]} 23. Qb4+ {[%clk 0:01:36.4]} 23... Ke8
{[%clk 0:01:29.6]} 24. Nb5 {[%clk 0:01:25.9]} 24... a5 {[%clk 0:01:24.6]} 25.
Qd6 {[%clk 0:01:07.6]} 25... Rc6 {[%clk 0:01:01.4]} 26. Nc7+ {[%clk 0:00:46.2]}
26... Rxc7 {[%clk 0:01:03.1]} 27. Bb5+ {[%clk 0:00:47.2]} 27... Bc6 {[%clk
0:01:00.3]} 28. Bxc6+ {[%clk 0:00:47.8]} 28... Rxc6 {[%clk 0:01:02.2]} 29. Qxc6+
{[%clk 0:00:49.7]} 29... Ke7 {[%clk 0:01:03.2]} 30. Qxb6 {[%clk 0:00:41.2]}
30... Rxh6 {[%clk 0:01:00.1]} 31. Rxh6 {[%clk 0:00:40]} 31... Nxh6 {[%clk
0:01:02]} 32. Rc1 {[%clk 0:00:40.4]} 32... Ng4 {[%clk 0:00:53]} 33. Qc5+ {[%clk
0:00:37.7]} 33... Kf6 {[%clk 0:00:36.6]} 34. Qd4 {[%clk 0:00:35.2]} 34... Kg6
{[%clk 0:00:35.9]} 35. Qxe5 {[%clk 0:00:36]} 35... Nxe5 {[%clk 0:00:37.8]} 36.
Ke2 {[%clk 0:00:34.4]} 36... a4 {[%clk 0:00:37.1]} 37. Rc8 {[%clk 0:00:28.7]}
37... Nc4 {[%clk 0:00:38]} 38. Rxc4 {[%clk 0:00:22]} 38... dxc4 {[%clk
0:00:39.3]} 39. Kd2 {[%clk 0:00:23.4]} 39... f4 {[%clk 0:00:39.3]} 40. exf4
{[%clk 0:00:22.6]} 40... Kf5 {[%clk 0:00:41]} 41. Kc3 {[%clk 0:00:22.5]} 41...
Kxf4 {[%clk 0:00:40.4]} 42. Kxc4 {[%clk 0:00:23.9]} 42... e5 {[%clk 0:00:39]}
43. b3 {[%clk 0:00:23.9]} 43... axb3 {[%clk 0:00:39.7]} 44. Kxb3 {[%clk
0:00:25.8]} 44... e4 {[%clk 0:00:28.1]} 45. Kc4 {[%clk 0:00:25.4]} 45... e3
{[%clk 0:00:28.4]} 46. fxe3+ {[%clk 0:00:26.3]} 46... Kxe3 {[%clk 0:00:30.3]}
47. a4 {[%clk 0:00:27.6]} 47... Kf2 {[%clk 0:00:31.7]} 48. a5 {[%clk 0:00:28.9]}
48... f5 {[%clk 0:00:32.4]} 49. a6 {[%clk 0:00:30.8]} 49... f4 {[%clk
0:00:31.8]} 50. a7 {[%clk 0:00:32.7]} 50... Kxg2 {[%clk 0:00:33.1]} 51. a8=Q+
{[%clk 0:00:33.8]} 51... f3 {[%clk 0:00:35]} 52. Kd3 {[%clk 0:00:34.9]} 1-0

[Event "*** Titled Tuesday Blitz"]
[Site "Chess.com"]
[Date "2018.10.02"]
[Round "5"]
[White "Ziyamammadov"]
[Black "NemtsevIgor"]
[Result "1/2-1/2"]
[WhiteElo "1924"]
[BlackElo "2361"]
[TimeControl "180+2"]
[EndTime "14:04:23 PDT"]
[Termination "Game drawn by agreement"]

1. e4 {[%clk 0:03:01.9]} 1... c6 {[%clk 0:02:59.8]} 2. d4 {[%clk 0:03:00.2]}
2... d5 {[%clk 0:03:00.6]} 3. exd5 {[%clk 0:03:00.6]} 3... cxd5 {[%clk 0:03:01]}
4. c4 {[%clk 0:03:01.1]} 4... Nf6 {[%clk 0:03:01.8]} 5. Nc3 {[%clk 0:03:01.4]}
5... e6 {[%clk 0:03:02.6]} 6. Bg5 {[%clk 0:03:00.5]} 6... Be7 {[%clk 0:03:02.7]}
7. Nf3 {[%clk 0:02:59.4]} 7... Ne4 {[%clk 0:03:01]} 8. Bxe7 {[%clk 0:02:53.8]}
8... Qxe7 {[%clk 0:03:02.1]} 9. Bd3 {[%clk 0:02:51.1]} 9... Nxc3 {[%clk
0:03:01.6]} 10. bxc3 {[%clk 0:02:51.5]} 10... dxc4 {[%clk 0:03:02.9]} 11. Bxc4
{[%clk 0:02:53.4]} 11... O-O {[%clk 0:03:03.1]} 12. O-O {[%clk 0:02:54.3]} 12...
b6 {[%clk 0:03:01.5]} 13. d5 {[%clk 0:02:50.7]} 13... exd5 {[%clk 0:02:51.7]}
14. Bxd5 {[%clk 0:02:52.6]} 14... Bb7 {[%clk 0:02:51.6]} 15. Re1 {[%clk
0:02:53]} 15... Qd7 {[%clk 0:02:49.5]} 16. Bxb7 {[%clk 0:02:53.4]} 16... Qxb7
{[%clk 0:02:50.2]} 17. Qb3 {[%clk 0:02:51.1]} 17... Nc6 {[%clk 0:02:47]} 18.
Rad1 {[%clk 0:02:49.4]} 18... Na5 {[%clk 0:02:46.1]} 19. Qa4 {[%clk 0:02:47.7]}
19... Rac8 {[%clk 0:02:38.1]} 20. Qd4 {[%clk 0:02:44.9]} 20... Qc7 {[%clk
0:02:31.5]} 21. Rd3 {[%clk 0:02:17]} 21... Rfd8 {[%clk 0:02:23.6]} 22. Qe4
{[%clk 0:02:16.1]} 22... h6 {[%clk 0:02:13.3]} 23. Rxd8+ {[%clk 0:01:55.5]}
23... Rxd8 {[%clk 0:02:13.3]} 24. Qe3 {[%clk 0:01:28.9]} 24... Rc8 {[%clk
0:02:09.7]} 25. Rc1 {[%clk 0:01:25.9]} 25... Qc4 {[%clk 0:02:09.6]} 26. Qd2
{[%clk 0:01:19.3]} 26... Qe4 {[%clk 0:02:02.2]} 27. Nd4 {[%clk 0:00:50.6]} 27...
Nc4 {[%clk 0:01:58.9]} 28. Qc2 {[%clk 0:00:36.3]} 28... Qxc2 {[%clk 0:01:57.7]}
29. Rxc2 {[%clk 0:00:37.6]} 29... Na3 {[%clk 0:01:55.8]} 30. Rc1 {[%clk
0:00:38.4]} 30... b5 {[%clk 0:01:49.8]} 31. Kf1 {[%clk 0:00:32.1]} 31... b4
{[%clk 0:01:42.5]} 32. Ne2 {[%clk 0:00:30.4]} 32... Rb8 {[%clk 0:01:31.7]} 33.
c4 {[%clk 0:00:22.1]} 33... Rc8 {[%clk 0:01:29]} 34. c5 {[%clk 0:00:23.4]} 34...
Nb5 {[%clk 0:01:28.5]} 35. Nf4 {[%clk 0:00:23.5]} 35... Nc3 {[%clk 0:01:26.3]}
36. Nd3 {[%clk 0:00:22.8]} 36... a5 {[%clk 0:01:26.5]} 37. Rc2 {[%clk
0:00:22.7]} 37... f6 {[%clk 0:01:25.2]} 38. a3 {[%clk 0:00:23.1]} 38... Nd5
{[%clk 0:01:15.8]} 39. axb4 {[%clk 0:00:23.6]} 39... axb4 {[%clk 0:01:17.1]} 40.
c6 {[%clk 0:00:11]} 40... Kf7 {[%clk 0:01:14.7]} 41. Rc4 {[%clk 0:00:09]} 41...
b3 {[%clk 0:01:10.2]} 42. Rc5 {[%clk 0:00:10.3]} 42... Ke6 {[%clk 0:01:06.5]}
43. Rb5 {[%clk 0:00:09.9]} 43... Rxc6 {[%clk 0:01:05]} 44. Rxb3 {[%clk
0:00:10.2]} 44... Rc2 {[%clk 0:01:04.8]} 45. g3 {[%clk 0:00:08.2]} 45... g5
{[%clk 0:00:57.6]} 46. Kg2 {[%clk 0:00:09.1]} 46... g4 {[%clk 0:00:56.9]} 47.
Nb4 {[%clk 0:00:08.8]} 47... Nxb4 {[%clk 0:00:49.4]} 48. Rxb4 {[%clk 0:00:10.7]}
48... h5 {[%clk 0:00:46.5]} 49. Rb6+ {[%clk 0:00:11.8]} 49... Kf5 {[%clk
0:00:46.7]} 50. Rb5+ {[%clk 0:00:13]} 50... Kg6 {[%clk 0:00:47.7]} 51. Rb4
{[%clk 0:00:13]} 51... Kg5 {[%clk 0:00:46.8]} 52. Rb5+ {[%clk 0:00:14]} 52... f5
{[%clk 0:00:48]} 53. Rb8 {[%clk 0:00:15.1]} 1/2-1/2

[Event "*** Titled Tuesday Blitz"]
[Site "Chess.com"]
[Date "2018.10.02"]
[Round "5"]
[White "DanielNaroditsky"]
[Black "jncool68"]
[Result "1/2-1/2"]
[WhiteElo "2961"]
[BlackElo "2701"]
[TimeControl "180+2"]
[EndTime "14:04:38 PDT"]
[Termination "Game drawn by repetition"]

1. e4 {[%clk 0:03:01.9]} 1... e5 {[%clk 0:02:59.9]} 2. Nc3 {[%clk 0:03:02.6]}
2... Nf6 {[%clk 0:02:59.9]} 3. Bc4 {[%clk 0:03:03.7]} 3... Nc6 {[%clk
0:02:53.4]} 4. d3 {[%clk 0:03:04.2]} 4... Na5 {[%clk 0:02:54.4]} 5. Bg5 {[%clk
0:03:00.5]} 5... Nxc4 {[%clk 0:02:50.5]} 6. dxc4 {[%clk 0:03:02.4]} 6... d6
{[%clk 0:02:51.7]} 7. Nge2 {[%clk 0:03:00.7]} 7... Be7 {[%clk 0:02:52.5]} 8. Qd3
{[%clk 0:02:53.4]} 8... b6 {[%clk 0:02:47.7]} 9. O-O {[%clk 0:02:51.4]} 9... Bb7
{[%clk 0:02:46.9]} 10. Ng3 {[%clk 0:02:47.3]} 10... Nd7 {[%clk 0:02:33.1]} 11.
Bxe7 {[%clk 0:02:41.3]} 11... Qxe7 {[%clk 0:02:32.7]} 12. Nf5 {[%clk 0:02:42.9]}
12... Qf6 {[%clk 0:02:33.1]} 13. Nb5 {[%clk 0:02:34.3]} 13... Nc5 {[%clk
0:01:57.3]} 14. Nxc7+ {[%clk 0:02:14.9]} 14... Kd8 {[%clk 0:01:53.1]} 15. Nd5
{[%clk 0:02:15.1]} 15... Nxd3 {[%clk 0:01:49.8]} 16. Nxf6 {[%clk 0:02:16.3]}
16... Nc5 {[%clk 0:01:47.3]} 17. Nd5 {[%clk 0:01:14.8]} 17... Nxe4 {[%clk
0:01:45.1]} 18. Rad1 {[%clk 0:01:16.4]} 18... g6 {[%clk 0:01:32.7]} 19. f3
{[%clk 0:01:11.9]} 19... gxf5 {[%clk 0:01:24.2]} 20. fxe4 {[%clk 0:01:12.5]}
20... f4 {[%clk 0:01:25.5]} 21. g3 {[%clk 0:01:14.1]} 21... Rg8 {[%clk
0:01:23.6]} 22. Kh1 {[%clk 0:01:00]} 22... Bxd5 {[%clk 0:00:47.1]} 23. Rxd5
{[%clk 0:01:01.9]} 23... Ke7 {[%clk 0:00:47.3]} 24. gxf4 {[%clk 0:01:03]} 24...
f6 {[%clk 0:00:48.6]} 25. Rd3 {[%clk 0:00:47.9]} 25... Rg4 {[%clk 0:00:37.7]}
26. Rdf3 {[%clk 0:00:45.2]} 26... exf4 {[%clk 0:00:31.6]} 27. Rxf4 {[%clk
0:00:44.1]} 27... Rxf4 {[%clk 0:00:32.3]} 28. Rxf4 {[%clk 0:00:46]} 28... Rc8
{[%clk 0:00:32.8]} 29. b3 {[%clk 0:00:46.2]} 29... b5 {[%clk 0:00:34]} 30. Rh4
{[%clk 0:00:47.4]} 30... bxc4 {[%clk 0:00:35.1]} 31. Rxh7+ {[%clk 0:00:48.4]}
31... Ke6 {[%clk 0:00:36.7]} 32. Rxa7 {[%clk 0:00:49.4]} 32... Ke5 {[%clk
0:00:33.4]} 33. Ra4 {[%clk 0:00:33.6]} 33... cxb3 {[%clk 0:00:21.9]} 34. cxb3
{[%clk 0:00:35.5]} 34... Rc2 {[%clk 0:00:22.7]} 35. Kg1 {[%clk 0:00:28.2]} 35...
Kf4 {[%clk 0:00:21.4]} 36. Kf1 {[%clk 0:00:20.9]} 36... Rxh2 {[%clk 0:00:20.9]}
37. Ke1 {[%clk 0:00:18.7]} 37... Ke3 {[%clk 0:00:22]} 38. Kd1 {[%clk 0:00:20.3]}
38... Kd3 {[%clk 0:00:23.4]} 39. Kc1 {[%clk 0:00:22]} 39... Re2 {[%clk
0:00:22.6]} 40. Ra6 {[%clk 0:00:14.2]} 40... Kxe4 {[%clk 0:00:23.7]} 41. a4
{[%clk 0:00:10.4]} 41... f5 {[%clk 0:00:24.3]} 42. Rxd6 {[%clk 0:00:11.1]} 42...
f4 {[%clk 0:00:25.7]} 43. Re6+ {[%clk 0:00:06.9]} 43... Kd3 {[%clk 0:00:26.5]}
44. Rf6 {[%clk 0:00:05]} 44... Ke3 {[%clk 0:00:27.7]} 45. a5 {[%clk 0:00:05.4]}
45... Ra2 {[%clk 0:00:27.3]} 46. a6 {[%clk 0:00:06]} 46... f3 {[%clk 0:00:28.7]}
47. b4 {[%clk 0:00:07.5]} 47... f2 {[%clk 0:00:29.4]} 48. b5 {[%clk 0:00:09.2]}
48... Ra5 {[%clk 0:00:25.4]} 49. Re6+ {[%clk 0:00:05.2]} 49... Kf3 {[%clk
0:00:26.3]} 50. Rf6+ {[%clk 0:00:04.5]} 50... Ke3 {[%clk 0:00:27.7]} 51. Re6+
{[%clk 0:00:06.1]} 51... Kf3 {[%clk 0:00:27.6]} 52. Rf6+ {[%clk 0:00:07.8]}
52... Ke3 {[%clk 0:00:28.8]} 53. Re6+ {[%clk 0:00:04]} 53... Kf3 {[%clk
0:00:30]} 54. Rf6+ {[%clk 0:00:05.4]} 54... Ke3 {[%clk 0:00:31.1]} 55. Re6+
{[%clk 0:00:06.3]} 1/2-1/2

[Event "*** Titled Tuesday Blitz"]
[Site "Chess.com"]
[Date "2018.10.02"]
[Round "5"]
[White "335394862"]
[Black "Godzillator"]
[Result "1/2-1/2"]
[WhiteElo "2314"]
[BlackElo "2262"]
[TimeControl "180+2"]
[EndTime "14:04:44 PDT"]
[Termination "Game drawn by repetition"]

1. Nf3 {[%clk 0:03:01.9]} 1... d5 {[%clk 0:03:00.5]} 2. g3 {[%clk 0:03:02.6]}
2... Nf6 {[%clk 0:03:01]} 3. Bg2 {[%clk 0:03:03.8]} 3... c6 {[%clk 0:03:01.2]}
4. c4 {[%clk 0:03:02.7]} 4... Bg4 {[%clk 0:03:02]} 5. cxd5 {[%clk 0:03:03.1]}
5... Bxf3 {[%clk 0:03:02]} 6. Bxf3 {[%clk 0:03:03.2]} 6... cxd5 {[%clk
0:03:03.1]} 7. d4 {[%clk 0:02:59.9]} 7... e6 {[%clk 0:03:03.3]} 8. O-O {[%clk
0:02:56.5]} 8... Nc6 {[%clk 0:03:03.9]} 9. Nc3 {[%clk 0:02:54.8]} 9... Be7
{[%clk 0:03:04.8]} 10. e4 {[%clk 0:02:41.6]} 10... dxe4 {[%clk 0:03:02.7]} 11.
Nxe4 {[%clk 0:02:41.7]} 11... Nxe4 {[%clk 0:02:44.3]} 12. Bxe4 {[%clk
0:02:41.3]} 12... Rc8 {[%clk 0:02:41.3]} 13. d5 {[%clk 0:02:39.7]} 13... exd5
{[%clk 0:02:40.9]} 14. Bxd5 {[%clk 0:02:38.3]} 14... O-O {[%clk 0:02:40.8]} 15.
a3 {[%clk 0:02:38.4]} 15... Bf6 {[%clk 0:02:41.7]} 16. Rb1 {[%clk 0:02:38.1]}
16... Qd7 {[%clk 0:02:31.2]} 17. Be3 {[%clk 0:02:29.5]} 17... Rfd8 {[%clk
0:02:27.6]} 18. Bb3 {[%clk 0:02:13.8]} 18... a6 {[%clk 0:02:23.5]} 19. Qxd7
{[%clk 0:02:13.2]} 19... Rxd7 {[%clk 0:02:23]} 20. Rfd1 {[%clk 0:02:06.6]} 20...
Rcd8 {[%clk 0:02:22.3]} 21. Rxd7 {[%clk 0:02:01.7]} 21... Rxd7 {[%clk
0:02:23.3]} 22. Kf1 {[%clk 0:01:59.2]} 22... g6 {[%clk 0:02:18.9]} 23. Ke1
{[%clk 0:01:57.8]} 23... Nd4 {[%clk 0:02:16.5]} 24. Bd1 {[%clk 0:01:54.4]} 24...
Nf5 {[%clk 0:02:13.4]} 25. Bd2 {[%clk 0:01:48.7]} 25... Re7+ {[%clk 0:02:12.1]}
26. Kf1 {[%clk 0:01:48.5]} 26... Nd4 {[%clk 0:02:11.4]} 27. Bc3 {[%clk
0:01:46.1]} 27... Kg7 {[%clk 0:02:07.7]} 28. Rc1 {[%clk 0:01:31.8]} 28... Nb5
{[%clk 0:01:59.7]} 29. Bxf6+ {[%clk 0:01:26.9]} 29... Kxf6 {[%clk 0:02:00.7]}
30. Rc4 {[%clk 0:01:23.6]} 30... Nd6 {[%clk 0:01:54.3]} 31. Rd4 {[%clk
0:01:24.3]} 31... Ke5 {[%clk 0:01:50.4]} 32. Rd3 {[%clk 0:01:25.1]} 32... Rc7
{[%clk 0:01:50.8]} 33. f4+ {[%clk 0:01:12.9]} 33... Ke6 {[%clk 0:01:47.6]} 34.
Bb3+ {[%clk 0:01:13.9]} 34... Ke7 {[%clk 0:01:45]} 35. Ke2 {[%clk 0:01:06.3]}
35... h5 {[%clk 0:01:43.3]} 36. Re3+ {[%clk 0:01:06.2]} 36... Kf6 {[%clk
0:01:43.3]} 37. Rd3 {[%clk 0:01:06]} 37... Nf5 {[%clk 0:01:44.2]} 38. h3 {[%clk
0:00:53.1]} 38... Ke7 {[%clk 0:01:23.5]} 39. g4 {[%clk 0:00:52.2]} 39... hxg4
{[%clk 0:01:24.1]} 40. hxg4 {[%clk 0:00:54.1]} 40... Nd6 {[%clk 0:01:25]} 41.
Re3+ {[%clk 0:00:53]} 41... Kf8 {[%clk 0:01:24.7]} 42. Rd3 {[%clk 0:00:50.9]}
42... Ke7 {[%clk 0:01:25]} 43. Kf3 {[%clk 0:00:46.5]} 43... Rc1 {[%clk
0:01:23.4]} 44. Re3+ {[%clk 0:00:45.8]} 44... Kf8 {[%clk 0:01:23.6]} 45. Rd3
{[%clk 0:00:47]} 45... Ke7 {[%clk 0:01:24.1]} 46. Re3+ {[%clk 0:00:44.2]} 46...
Kf8 {[%clk 0:01:24.7]} 47. Re5 {[%clk 0:00:38]} 47... Rb1 {[%clk 0:01:13.4]} 48.
Re2 {[%clk 0:00:37.9]} 48... Rh1 {[%clk 0:01:07.6]} 49. Kg2 {[%clk 0:00:35.4]}
49... Rc1 {[%clk 0:01:03.3]} 50. Rd2 {[%clk 0:00:27.2]} 50... Ke7 {[%clk
0:01:02.8]} 51. Re2+ {[%clk 0:00:28.2]} 51... Kf8 {[%clk 0:01:03.6]} 52. Rd2
{[%clk 0:00:29.5]} 52... Ke7 {[%clk 0:00:52.8]} 53. Re2+ {[%clk 0:00:29.4]}
53... Kd7 {[%clk 0:00:53.7]} 54. Rd2 {[%clk 0:00:30.5]} 54... Kc7 {[%clk
0:00:54.5]} 55. Kf3 {[%clk 0:00:28.1]} 55... Rh1 {[%clk 0:00:46.5]} 56. Kg2
{[%clk 0:00:27.5]} 56... Rc1 {[%clk 0:00:46.8]} 57. Re2 {[%clk 0:00:26]} 57...
Kd7 {[%clk 0:00:44.1]} 58. Rd2 {[%clk 0:00:27]} 58... Ke7 {[%clk 0:00:44.6]} 59.
Re2+ {[%clk 0:00:28.2]} 59... Kf8 {[%clk 0:00:44.1]} 60. Rd2 {[%clk 0:00:29]}
60... Ke7 {[%clk 0:00:43.8]} 61. Re2+ {[%clk 0:00:29.8]} 1/2-1/2

[Event "*** Titled Tuesday Blitz"]
[Site "Chess.com"]
[Date "2018.10.02"]
[Round "5"]
[White "ahmadzada13"]
[Black "BocharovD"]
[Result "1-0"]
[WhiteElo "2648"]
[BlackElo "2780"]
[TimeControl "180+2"]
[EndTime "14:04:45 PDT"]
[Termination "ahmadzada13 won by resignation"]

1. e4 {[%clk 0:03:01.9]} 1... c5 {[%clk 0:02:59.2]} 2. Nf3 {[%clk 0:03:00.6]}
2... e6 {[%clk 0:03:00.3]} 3. c3 {[%clk 0:03:01.4]} 3... d5 {[%clk 0:02:57.1]}
4. exd5 {[%clk 0:03:00.4]} 4... Qxd5 {[%clk 0:02:58.2]} 5. d4 {[%clk 0:03:00.2]}
5... Nf6 {[%clk 0:02:59.2]} 6. Na3 {[%clk 0:02:57]} 6... Nc6 {[%clk 0:02:59.7]}
7. Nb5 {[%clk 0:02:54.6]} 7... Qd8 {[%clk 0:03:00.3]} 8. Bf4 {[%clk 0:02:50]}
8... Nd5 {[%clk 0:02:56.2]} 9. Bg3 {[%clk 0:02:45.5]} 9... a6 {[%clk 0:02:56.5]}
10. Na3 {[%clk 0:02:41.4]} 10... cxd4 {[%clk 0:02:53.5]} 11. Nxd4 {[%clk
0:02:39.1]} 11... Nxc3 {[%clk 0:02:20.4]} 12. bxc3 {[%clk 0:02:38.3]} 12... Bxa3
{[%clk 0:02:20.6]} 13. Nxc6 {[%clk 0:02:25.4]} 13... bxc6 {[%clk 0:02:14.2]} 14.
Qxd8+ {[%clk 0:02:22.4]} 14... Kxd8 {[%clk 0:02:14.3]} 15. Rb1 {[%clk
0:02:21.9]} 15... e5 {[%clk 0:02:05.9]} 16. Bd3 {[%clk 0:02:19]} 16... f6 {[%clk
0:02:06]} 17. f3 {[%clk 0:02:14]} 17... Bc5 {[%clk 0:02:03.6]} 18. Kd2 {[%clk
0:02:10.4]} 18... h5 {[%clk 0:01:57.5]} 19. h4 {[%clk 0:02:08.4]} 19... Kc7
{[%clk 0:01:57.8]} 20. f4 {[%clk 0:02:06]} 20... Rd8 {[%clk 0:01:50.8]} 21. Kc2
{[%clk 0:02:00.4]} 21... exf4 {[%clk 0:01:38.2]} 22. Bxf4+ {[%clk 0:01:59.4]}
22... Bd6 {[%clk 0:01:39.7]} 23. Be3 {[%clk 0:01:52.7]} 23... c5 {[%clk
0:01:36.2]} 24. Be4 {[%clk 0:01:51.6]} 24... Rb8 {[%clk 0:01:36.5]} 25. Rxb8
{[%clk 0:01:34.3]} 25... Kxb8 {[%clk 0:01:37.3]} 26. Rb1+ {[%clk 0:01:32.4]}
26... Kc7 {[%clk 0:01:38.6]} 27. c4 {[%clk 0:01:29.7]} 27... Re8 {[%clk
0:01:21.3]} 28. Kd3 {[%clk 0:01:28.1]} 28... Rd8 {[%clk 0:01:14.3]} 29. Ke2
{[%clk 0:01:17.1]} 29... Bg4+ {[%clk 0:00:53.5]} 30. Bf3 {[%clk 0:01:17.1]}
30... Re8 {[%clk 0:00:50.1]} 31. Rb7+ {[%clk 0:01:11.6]} 31... Kc8 {[%clk
0:00:51.1]} 32. Ra7 {[%clk 0:01:06.3]} 32... Re7 {[%clk 0:00:21.8]} 33. Rxa6
{[%clk 0:01:04.7]} 33... Bf4 {[%clk 0:00:22.2]} 34. Ra8+ {[%clk 0:00:58.5]}
34... Bb8 {[%clk 0:00:23.2]} 35. Bxg4+ {[%clk 0:00:52.8]} 35... hxg4 {[%clk
0:00:23.8]} 36. Kd3 {[%clk 0:00:54.6]} 36... Kb7 {[%clk 0:00:24.6]} 37. Ra5
{[%clk 0:00:50.3]} 37... Bc7 {[%clk 0:00:25]} 38. Rb5+ {[%clk 0:00:49]} 38...
Kc6 {[%clk 0:00:26.3]} 39. Rxc5+ {[%clk 0:00:46.8]} 39... Kd7 {[%clk 0:00:27.8]}
40. Rd5+ {[%clk 0:00:44]} 40... Kc6 {[%clk 0:00:28.8]} 41. a4 {[%clk 0:00:43.9]}
41... g6 {[%clk 0:00:25.5]} 42. a5 {[%clk 0:00:42]} 42... f5 {[%clk 0:00:25.5]}
43. a6 {[%clk 0:00:40.6]} 43... f4 {[%clk 0:00:24.4]} 44. Bf2 {[%clk 0:00:31.9]}
44... g3 {[%clk 0:00:23.4]} 45. Bd4 {[%clk 0:00:30.1]} 45... Re1 {[%clk
0:00:21.5]} 46. Rg5 {[%clk 0:00:27.2]} 46... Rd1+ {[%clk 0:00:20.3]} 47. Ke4
{[%clk 0:00:23.8]} 47... Re1+ {[%clk 0:00:20.8]} 48. Kf3 {[%clk 0:00:24.4]}
48... Rf1+ {[%clk 0:00:21.9]} 49. Kg4 {[%clk 0:00:26]} 49... f3 {[%clk
0:00:22.5]} 50. Rxg6+ {[%clk 0:00:20.5]} 50... Bd6 {[%clk 0:00:23.5]} 51. a7
{[%clk 0:00:14.3]} 51... Kb7 {[%clk 0:00:24.1]} 52. Rg7+ {[%clk 0:00:11.8]}
52... Ka8 {[%clk 0:00:24.1]} 53. Rg8+ {[%clk 0:00:11.9]} 1-0

[Event "*** Titled Tuesday Blitz"]
[Site "Chess.com"]
[Date "2018.10.02"]
[Round "5"]
[White "cool4chess"]
[Black "Aklanion"]
[Result "1-0"]
[WhiteElo "2175"]
[BlackElo "2167"]
[TimeControl "180+2"]
[EndTime "14:04:45 PDT"]
[Termination "cool4chess won by resignation"]

1. e4 {[%clk 0:03:01.9]} 1... c5 {[%clk 0:03:00.2]} 2. Nf3 {[%clk 0:03:01.7]}
2... e6 {[%clk 0:03:00.7]} 3. d4 {[%clk 0:03:02.4]} 3... cxd4 {[%clk 0:03:00.8]}
4. Nxd4 {[%clk 0:03:04.3]} 4... Nc6 {[%clk 0:03:00.9]} 5. Nc3 {[%clk 0:03:03.3]}
5... Qc7 {[%clk 0:03:02]} 6. Be2 {[%clk 0:02:59.2]} 6... a6 {[%clk 0:03:02.5]}
7. O-O {[%clk 0:02:59.6]} 7... Nf6 {[%clk 0:03:03.7]} 8. Kh1 {[%clk 0:02:59.8]}
8... Nxd4 {[%clk 0:03:03.8]} 9. Qxd4 {[%clk 0:03:00.1]} 9... Bc5 {[%clk
0:03:05.2]} 10. Qd3 {[%clk 0:03:01]} 10... b5 {[%clk 0:03:02.2]} 11. f4 {[%clk
0:02:57.7]} 11... h5 {[%clk 0:03:01.5]} 12. e5 {[%clk 0:02:53.8]} 12... Ng4
{[%clk 0:02:46.7]} 13. Ne4 {[%clk 0:02:50.7]} 13... Bb7 {[%clk 0:02:43.1]} 14.
Bd2 {[%clk 0:02:12.5]} 14... Rc8 {[%clk 0:02:26.9]} 15. Be1 {[%clk 0:02:04.5]}
15... Ne3 {[%clk 0:01:48]} 16. Rf3 {[%clk 0:01:19.2]} 16... Nf5 {[%clk
0:01:45.7]} 17. Rh3 {[%clk 0:01:03.8]} 17... Bxe4 {[%clk 0:01:05.7]} 18. Qxe4
{[%clk 0:01:03.6]} 18... d5 {[%clk 0:01:01.7]} 19. exd6 {[%clk 0:00:47.7]} 19...
Bxd6 {[%clk 0:00:59.8]} 20. Bc3 {[%clk 0:00:33.7]} 20... Bxf4 {[%clk 0:00:30.5]}
21. Rf1 {[%clk 0:00:32.2]} 21... b4 {[%clk 0:00:04.2]} 22. Bxb4 {[%clk
0:00:16.1]} 22... Bd6 {[%clk 0:00:05.6]} 23. Bxa6 {[%clk 0:00:11.9]} 23... Bxb4
{[%clk 0:00:04.5]} 24. Bxc8 {[%clk 0:00:11.5]} 24... Nd6 {[%clk 0:00:05.5]} 25.
Qxb4 {[%clk 0:00:11.8]} 25... Nxc8 {[%clk 0:00:05.6]} 26. Rc3 {[%clk 0:00:12.7]}
26... Qd8 {[%clk 0:00:05.7]} 27. Qb8 {[%clk 0:00:12.2]} 27... Ne7 {[%clk
0:00:05.8]} 28. Qxd8+ {[%clk 0:00:11.5]} 28... Kxd8 {[%clk 0:00:07.7]} 29. Rd1+
{[%clk 0:00:12.5]} 29... Nd5 {[%clk 0:00:08.8]} 30. Ra3 {[%clk 0:00:12.5]} 30...
Ke7 {[%clk 0:00:09.7]} 31. c4 {[%clk 0:00:13.9]} 31... Nf6 {[%clk 0:00:10.9]}
32. c5 {[%clk 0:00:14.4]} 32... Ng4 {[%clk 0:00:11.9]} 33. Kg1 {[%clk 0:00:14]}
33... Rc8 {[%clk 0:00:12.5]} 34. b4 {[%clk 0:00:14.6]} 34... Rb8 {[%clk
0:00:14]} 35. Rb3 {[%clk 0:00:15.4]} 35... Ne5 {[%clk 0:00:15.1]} 36. a3 {[%clk
0:00:16.6]} 36... Nc6 {[%clk 0:00:16.1]} 37. Rd6 {[%clk 0:00:15.4]} 37... Na5
{[%clk 0:00:17]} 38. Rbd3 {[%clk 0:00:15.5]} 38... Nc4 {[%clk 0:00:16.3]} 39.
Rd7+ {[%clk 0:00:16.7]} 39... Kf6 {[%clk 0:00:16.2]} 40. Rf3+ {[%clk 0:00:17.1]}
40... Kg6 {[%clk 0:00:15.8]} 41. Rfxf7 {[%clk 0:00:18]} 41... Ne5 {[%clk
0:00:11.3]} 42. Rxg7+ {[%clk 0:00:18.8]} 42... Kf6 {[%clk 0:00:12.6]} 43. Ra7
{[%clk 0:00:13.4]} 43... Rd8 {[%clk 0:00:13.5]} 44. h3 {[%clk 0:00:14.8]} 44...
h4 {[%clk 0:00:13.9]} 45. Rh7 {[%clk 0:00:14.5]} 45... Rd1+ {[%clk 0:00:08.7]}
46. Kh2 {[%clk 0:00:15.5]} 46... Rd2 {[%clk 0:00:08.6]} 47. Kg1 {[%clk
0:00:14.8]} 47... Nd3 {[%clk 0:00:06.2]} 48. Rxh4 {[%clk 0:00:14.5]} 48... Rd1+
{[%clk 0:00:07.3]} 49. Kh2 {[%clk 0:00:15.7]} 49... Nf2 {[%clk 0:00:07.5]} 50.
Rf4+ {[%clk 0:00:16.3]} 50... Ke5 {[%clk 0:00:07.2]} 51. Rxf2 {[%clk 0:00:18.2]}
1-0